Cogmind - Beta 11.1 @@@ ROGUE MODE // 2022.05.04 @ 13:52:33 Player: Azken Zutik Result: Destroyed by S-27 Virus with Autogun Performance ------------- Evolutions (5) 2500 Regions Visited (9) 1800 Robots Destroyed (1) 5 Value Destroyed (16) 16 Prototype IDs (0) 0 Alien Tech Used (0) 0 Bonus (1325) 1325 TOTAL SCORE: 5646 Bonus ------- Pacifist 1325 Cogmind --------- Core Integrity 0/1000 Matter 285/300 Energy 53/100 System Corruption 5% Temperature Cool (0) Movement Flying (45) Location -5/Factory Parts ------- > --- POWER (1) -------- (None) > --- PROPULSION (2) --- Field Propulsion Drive > --- UTILITY (12) ----- (None) > --- WEAPON (2) ------- (None) > --- INVENTORY (5) ---- Ion Engine Light Treads Compact Wheel Compact Wheel Peak State ------------ > --- POWER ------------ (None) > --- PROPULSION ------- Field Propulsion Array > --- UTILITY ---------- (None) > --- WEAPON ----------- EM Pulse Gun > --- INVENTORY -------- Ion Engine Light Treads Compact Wheel Compact Wheel [Rating: 15] Favorites ----------- Power None Propulsion Light Treads Treads Light Treads Leg Titanium Leg Flight Unit Field Propulsion Array Utility None Weapon EM Pulse Gun Energy Gun EM Pulse Gun Build | -11 -10 -9 -9 -8 -7 -6 -6 -6 -5 ------- Run | Scr Mat Mat Min Mat Fac Fac Was Fac Fac Slots Evolved 10 | . . 2 . 2 2 2 . . 2 Power . | . . . . . . . . . . Propulsion . | . . . . . . . . . . Utility 10 | . . 2 . 2 2 2 . . 2 Weapon . | . . . . . . . . . . Parts Attached 7 | 1 . . . 1 1 . 1 1 2 Power . | . . . . . . . . . . Engine . | . . . . . . . . . . Core . | . . . . . . . . . . Reactor . | . . . . . . . . . . Propulsion 6 | 1 . . . 1 1 . 1 . 2 Treads 2 | 1 . . . . 1 . . . . Leg 1 | . . . . 1 . . . . . Wheel . | . . . . . . . . . . Hover . | . . . . . . . . . . Flight 3 | . . . . . . . 1 . 2 Utility . | . . . . . . . . . . Device . | . . . . . . . . . . Storage . | . . . . . . . . . . Processor . | . . . . . . . . . . Hackware . | . . . . . . . . . . Protection . | . . . . . . . . . . Artifact . | . . . . . . . . . . Weapon 1 | . . . . . . . . 1 . Energy Gun 1 | . . . . . . . . 1 . Energy Cannon . | . . . . . . . . . . Ballistic Gun . | . . . . . . . . . . Ballistic Cannon . | . . . . . . . . . . Launcher . | . . . . . . . . . . Special Weapon . | . . . . . . . . . . Impact Weapon . | . . . . . . . . . . Slashing Weapon . | . . . . . . . . . . Piercing Weapon . | . . . . . . . . . . Special Melee Weapon . | . . . . . . . . . . Unidentified Prototypes . | . . . . . . . . . . Parts Lost 4 | . . . . 1 . . . . 3 Power . | . . . . . . . . . . Propulsion 3 | . . . . 1 . . . . 2 Utility . | . . . . . . . . . . Weapon 1 | . . . . . . . . . 1 Highest Loss Streak 2 | . . . . 1 . . . . 2 To Critical Strikes . | . . . . . . . . . . Average Slot Usage (%) 8 | . 14 11 11 12 7 6 6 7 6 Treads 4 | . 14 11 11 5 7 6 . . . Flight 2 | . . . . . . . 6 6 3 Naked Turns 44 | . . . . 2 . . 1 . 41 Heaviest Build 2 | . . . . . . . . 2 2 Greatest Support 20 | 20 3 3 3 3 3 3 15 15 15 Greatest Overweight (x) . | . . . . . . . . . . Average Overweight (x) . | . . . . . . . . . . Largest Inventory Capacity 5 | 5 5 5 5 5 5 5 5 5 5 Average Capacity 5 | 5 5 5 5 5 5 5 5 5 5 Most Carried 5 | 5 5 5 5 5 4 4 5 5 4 Average Carried 4 | 5 5 5 5 5 4 4 4 4 4 Final Capacity 5 | 5 5 5 5 5 5 5 5 5 5 Final Carried 5 | 5 5 5 5 5 4 4 5 4 4 Class Distribution -------------------- 100% | Mutant Dominant Class ---------------- Mutant | -10/Materials Mutant | -9/Materials Mutant | -9/Mines Mutant | -8/Materials Mutant | -7/Factory Mutant | -6/Factory Mutant | -6/Waste Mutant | -6/Factory Mutant | -5/Factory Resources | -11 -10 -9 -9 -8 -7 -6 -6 -6 -5 ----------- Run | Scr Mat Mat Min Mat Fac Fac Was Fac Fac Matter Collected 222 | 174 . 32 . . . 3 . 13 . Remotely . | . . . . . . . . . . Salvage Created 13 | . . . . . . . . 13 . Parts 3 | . . . . . . . . 3 . Haulers Intercepted . | . . . . . . . . . . Recyclers Shooed . | . . . . . . . . . . Parts Field Recycled . | . . . . . . . . . . Retrieved Matter . | . . . . . . . . . . Parts Self-Destructed . | . . . . . . . . . . Prevented . | . . . . . . . . . . Kills | -11 -10 -9 -9 -8 -7 -6 -6 -6 -5 ------- Run | Scr Mat Mat Min Mat Fac Fac Was Fac Fac Combat Hostiles Destroyed . | . . . . . . . . . . Classes Destroyed 1 | . . . . . . . . 1 . Operator 1 | . . . . . . . . 1 . Best Kill Streak 1 | . . . . . . . . 1 . Combat Bots Only . | . . . . . . . . . . Max Kills in Single Turn 1 | . . . . . . . . 1 . Gunslinging . | . . . . . . . . . . Exploded . | . . . . . . . . . . Melee . | . . . . . . . . . . Uniques/NPCs Destroyed . | . . . . . . . . . . Combat | -11 -10 -9 -9 -8 -7 -6 -6 -6 -5 -------- Run | Scr Mat Mat Min Mat Fac Fac Was Fac Fac Damage Taken 2011 | . . 210 . 394 . 103 93 85 1126 Core 1586 | . . 141 . 220 . 42 93 84 1006 Absorbed by Shields . | . . . . . . . . . . Core Remaining (%) 83 | 100 100 . 64 60 100 . . 74 . Volleys Fired 1 | . . . . . . . . 1 . Largest 1 | . . . . . . . . 1 . Hottest 40 | . . . . . . . . 40 . Shots Fired 1 | . . . . . . . . 1 . Gun 1 | . . . . . . . . 1 . Cannon . | . . . . . . . . . . Launcher . | . . . . . . . . . . Special . | . . . . . . . . . . Kinetic . | . . . . . . . . . . Thermal . | . . . . . . . . . . Explosive . | . . . . . . . . . . Electromagnetic 1 | . . . . . . . . 1 . Robot Hit Streak 1 | . . . . . . . . 1 . Robot Miss Streak . | . . . . . . . . . . Penetration Max . | . . . . . . . . . . Secondary Targets . | . . . . . . . . . . Shots Hit Robots 1 | . . . . . . . . 1 . Core Hits 6 | . . . . . . . . 1 5 Critical Kills . | . . . . . . . . . . Critical Parts Destroyed . | . . . . . . . . . . Critical Strikes . | . . . . . . . . . . Melee Attacks . | . . . . . . . . . . Impact . | . . . . . . . . . . Slashing . | . . . . . . . . . . Piercing . | . . . . . . . . . . Sneak Attacks . | . . . . . . . . . . Combat Hostiles . | . . . . . . . . . . Follow-up Attacks . | . . . . . . . . . . Damage Inflicted 105 | . . 16 . . . 16 . 21 52 Guns 18 | . . . . . . . . 18 . Cannons . | . . . . . . . . . . Explosions . | . . . . . . . . . . Melee . | . . . . . . . . . . Ramming 87 | . . 16 . . . 16 . 3 52 Kinetic . | . . . . . . . . . . Thermal . | . . . . . . . . . . Explosive . | . . . . . . . . . . Electromagnetic 18 | . . . . . . . . 18 . Impact . | . . . . . . . . . . Slashing . | . . . . . . . . . . Piercing . | . . . . . . . . . . Highest Corruption 10 | . . . . . . . 10 10 5 Average Corruption 9 | . . . . . . . 10 10 3 Corruption Purged . | . . . . . . . . . . Corruption Blocked . | . . . . . . . . . . Effects 10 | . . . . . . . 4 5 1 Message Errors 1 | . . . . . . . . 1 . Matter Fused 3 | . . . . . . . 1 2 . Heat Flow Errors 2 | . . . . . . . 2 . . Energy Discharges 1 | . . . . . . . . . 1 Data Loss (minor) 2 | . . . . . . . . 2 . Misdirections 1 | . . . . . . . 1 . . Overload Shots . | . . . . . . . . . . Overflow Damage . | . . . . . . . . . . Projectiles . | . . . . . . . . . . Explosions . | . . . . . . . . . . Melee . | . . . . . . . . . . Knockbacks 1 | . . . . . . . . . 1 Impact 1 | . . . . . . . . . 1 Kinetic . | . . . . . . . . . . Secondary . | . . . . . . . . . . Self-Inflicted Damage 41 | . . 8 . . . 8 . 1 24 Shots . | . . . . . . . . . . Rammed 15 | . . 1 . . . 2 . 1 11 Targets Rammed 15 | . . 1 . . . 2 . 1 11 Kicked . | . . . . . . . . . . Crushed . | . . . . . . . . . . Highest Temperature 110 | . . . . . . . 110 . . Average Temperature 56 | . . . . . . . 56 . . Received Heat Transfer 321 | . . 123 . 54 . 39 . 9 96 Siege Activations . | . . . . . . . . . . Robots Corrupted . | . . . . . . . . . . Combat Hostiles . | . . . . . . . . . . Parts Fried . | . . . . . . . . . . Impact Corruptions . | . . . . . . . . . . Robots Melted . | . . . . . . . . . . Combat Hostiles . | . . . . . . . . . . Parts Melted . | . . . . . . . . . . Heat Transferred . | . . . . . . . . . . Parts Sabotaged . | . . . . . . . . . . Parts Stolen . | . . . . . . . . . . Parts Stripped . | . . . . . . . . . . Power Chain Reactions . | . . . . . . . . . . Missiles Intercepted . | . . . . . . . . . . Alert | -11 -10 -9 -9 -8 -7 -6 -6 -6 -5 ------- Run | Scr Mat Mat Min Mat Fac Fac Was Fac Fac Peak Influence 140 | . . 30 11 47 21 54 48 140 137 Initial 68 | . . . 11 3 21 9 18 33 68 Average 41 | . . 9 11 25 21 10 41 68 89 Maximum Alert Level . | . . . . . . . . . . Low Security (%) 100 | 100 100 100 100 100 100 100 100 100 100 Level 1 . | . . . . . . . . . . Level 2 . | . . . . . . . . . . Level 3 . | . . . . . . . . . . Level 4 . | . . . . . . . . . . Level 5 . | . . . . . . . . . . High Security . | . . . . . . . . . . Max Security . | . . . . . . . . . . Squads Dispatched 6 | . . . . 1 . 1 . 2 2 Investigation 4 | . . . . . . 1 . 1 2 Extermination . | . . . . . . . . . . Reinforcement 2 | . . . . 1 . . . 1 . Assault . | . . . . . . . . . . Garrison . | . . . . . . . . . . Intercept . | . . . . . . . . . . Searches Triggered . | . . . . . . . . . . Construction Impeded . | . . . . . . . . . . Haulers Reinforced . | . . . . . . . . . . Active Scanning Responses . | . . . . . . . . . . Cargo Convoy Interrupts . | . . . . . . . . . . Stealth | -11 -10 -9 -9 -8 -7 -6 -6 -6 -5 --------- Run | Scr Mat Mat Min Mat Fac Fac Was Fac Fac Distress Signals 3 | . . . . 1 . . . . 2 Communications Jammed . | . . . . . . . . . . Distress Signals . | . . . . . . . . . . Times Spotted 56 | . . 11 . 12 . 5 6 6 16 Peak Tracking Total 13 | . . 11 . 11 . 5 6 4 13 Tactical Retreats 7 | . . . . 1 . 1 . 2 3 Traps | -11 -10 -9 -9 -8 -7 -6 -6 -6 -5 ------- Run | Scr Mat Mat Min Mat Fac Fac Was Fac Fac Traps Triggered 3 | . . . . . . 1 . 1 1 Indirectly . | . . . . . . . . . . Trap Hack Attempts . | . . . . . . . . . . Triggered . | . . . . . . . . . . Disarmed . | . . . . . . . . . . Reprogrammed . | . . . . . . . . . . Reused . | . . . . . . . . . . Traps Extracted . | . . . . . . . . . . Installed . | . . . . . . . . . . Triggered . | . . . . . . . . . . Machines | -11 -10 -9 -9 -8 -7 -6 -6 -6 -5 ---------- Run | Scr Mat Mat Min Mat Fac Fac Was Fac Fac Machines Disabled . | . . . . . . . . . . Max in Single Turn . | . . . . . . . . . . Machines Sabotaged . | . . . . . . . . . . Garrisons Compromised . | . . . . . . . . . . Overloaded Fab Kills . | . . . . . . . . . . Hacking | -11 -10 -9 -9 -8 -7 -6 -6 -6 -5 --------- Run | Scr Mat Mat Min Mat Fac Fac Was Fac Fac Machines Accessed 6 | . . . . 1 . 1 . 2 2 Terminals 6 | . . . . 1 . 1 . 2 2 Fabricators . | . . . . . . . . . . Repair Stations . | . . . . . . . . . . Recycling Units . | . . . . . . . . . . Scanalyzers . | . . . . . . . . . . Garrison Access . | . . . . . . . . . . Total Hacks 15 | . . . . 1 . 2 . 5 7 Successful 3 | . . . . 1 . . . 1 1 Failed 12 | . . . . . . 2 . 4 6 Catastrophic 7 | . . . . . . 1 . 1 5 Database Lockouts . | . . . . . . . . . . Manual 11 | . . . . 1 . . . 4 6 Terminals 15 | . . . . 1 . 2 . 5 7 Fabricators . | . . . . . . . . . . Repair Stations . | . . . . . . . . . . Recycling Units . | . . . . . . . . . . Scanalyzers . | . . . . . . . . . . Garrison Access . | . . . . . . . . . . Terminal Hacks 3 | . . . . 1 . . . 1 1 Level Access Points 2 | . . . . 1 . . . 1 . Registered Prototypes 1 | . . . . . . . . . 1 Fabricator Hacks . | . . . . . . . . . . Repair Station Hacks . | . . . . . . . . . . Recycling Unit Hacks . | . . . . . . . . . . Scanalyzer . | . . . . . . . . . . Garrison Access Hacks . | . . . . . . . . . . Unauthorized Hacks . | . . . . . . . . . . Terminals . | . . . . . . . . . . Fabricators . | . . . . . . . . . . Repair Stations . | . . . . . . . . . . Recycling Units . | . . . . . . . . . . Scanalyzers . | . . . . . . . . . . Garrison Access . | . . . . . . . . . . Data Cores Recovered . | . . . . . . . . . . Used . | . . . . . . . . . . Hacking Detections 6 | . . . . 1 . 1 . 2 2 Full Trace Events 4 | . . . . . . 1 . 1 2 Feedback Events . | . . . . . . . . . . Feedback Blocked . | . . . . . . . . . . Robot Schematics Acquired . | . . . . . . . . . . Robots Built . | . . . . . . . . . . Authchips . | . . . . . . . . . . Time . | . . . . . . . . . . Total Robot Build Rating . | . . . . . . . . . . Part Schematics Acquired . | . . . . . . . . . . Parts Built . | . . . . . . . . . . Authchips . | . . . . . . . . . . Time . | . . . . . . . . . . Total Part Build Rating . | . . . . . . . . . . Parts Repaired . | . . . . . . . . . . Time . | . . . . . . . . . . Parts Recycled . | . . . . . . . . . . Recycled Matter . | . . . . . . . . . . Retrieved Matter . | . . . . . . . . . . Retrieved Components . | . . . . . . . . . . Parts Scanalyzed . | . . . . . . . . . . Part Schematics Acquired . | . . . . . . . . . . Parts Damaged . | . . . . . . . . . . Bothacking | -11 -10 -9 -9 -8 -7 -6 -6 -6 -5 ------------ Run | Scr Mat Mat Min Mat Fac Fac Was Fac Fac Used RIF Installer . | . . . . . . . . . . Robots Hacked . | . . . . . . . . . . Non-combat . | . . . . . . . . . . Combat . | . . . . . . . . . . Robot Hacks Applied . | . . . . . . . . . . Relay Couplers Released . | . . . . . . . . . . Fabnet Peak Effective % . | . . . . . . . . . . Robots Rewired . | . . . . . . . . . . Allies Hacked . | . . . . . . . . . . Hacks Repelled . | . . . . . . . . . . Allies | -11 -10 -9 -9 -8 -7 -6 -6 -6 -5 -------- Run | Scr Mat Mat Min Mat Fac Fac Was Fac Fac Total Allies . | . . . . . . . . . . Largest Group . | . . . . . . . . . . Highest-Rated Group . | . . . . . . . . . . Highest-Rated Ally . | . . . . . . . . . . Total Orders . | . . . . . . . . . . Ally Attacks . | . . . . . . . . . . Total Damage . | . . . . . . . . . . Kills . | . . . . . . . . . . Allies Corrupted . | . . . . . . . . . . Allies Melted . | . . . . . . . . . . Intel | -11 -10 -9 -9 -8 -7 -6 -6 -6 -5 ------- Run | Scr Mat Mat Min Mat Fac Fac Was Fac Fac Robot Analysis Total . | . . . . . . . . . . Derelict Logs Recovered . | . . . . . . . . . . Drone Launches . | . . . . . . . . . . Drone Recoveries . | . . . . . . . . . . Exploration | -11 -10 -9 -9 -8 -7 -6 -6 -6 -5 ------------- Run | Scr Mat Mat Min Mat Fac Fac Was Fac Fac Turns Passed 565 | 2 42 58 44 68 19 59 50 109 114 Spaces Moved 1167 | 2 83 114 87 132 35 114 116 251 233 Core 633 | 1 83 114 87 132 35 114 8 . 59 Treads 1 | 1 . . . . . . . . . Legs . | . . . . . . . . . . Wheels . | . . . . . . . . . . Hover . | . . . . . . . . . . Flight 533 | . . . . . . . 108 251 174 Fastest Speed 40 | 50 50 50 50 50 50 50 40 40 40 Average Speed 45 | 105 50 50 50 50 50 50 40 40 42 Slowest Speed 160 | 160 50 50 50 50 50 50 50 40 50 Overloaded Moves . | . . . . . . . . . . Propulsion Burnouts . | . . . . . . . . . . Robots Hopped 3 | . . . . . . . . 2 1 Cave-ins Triggered . | . . . . . . . . . . Exploration Rate (%) 22 | 2 26 23 47 24 1 4 72 12 10 Regions Visited 9 Branch Regions 1 Pre-discovered Areas . | . . . . . . . . . . Known Exits Taken 2 | . . . . 1 . . . 1 . Unknown Exits Taken 5 | 1 1 1 1 . 1 . . . . Scrap Searched 1 | . . . 1 . . . . . . Spaces Dug . | . . . . . . . . . . Terrain Destroyed . | . . . . . . . . . . Melee . | . . . . . . . . . . Projectile . | . . . . . . . . . . AOE . | . . . . . . . . . . Terrain Rammed . | . . . . . . . . . . Walls Destroyed . | . . . . . . . . . . Machines Disabled . | . . . . . . . . . . Actions | -11 -10 -9 -9 -8 -7 -6 -6 -6 -5 --------- Run | Scr Mat Mat Min Mat Fac Fac Was Fac Fac Total 1186 | 2 82 114 86 132 35 116 118 256 245 Wait 1 | . . . . . . . 1 . . Move 1154 | 1 82 113 86 131 34 114 115 247 231 Hop 3 | . . . . . . . . 2 1 Pick Up . | . . . . . . . . . . Fast Attach 5 | 1 . . . 1 . . 1 . 2 Attach 2 | . . . . . 1 . . 1 . Detach 1 | . . . . . . . 1 . . Swap . | . . . . . . . . . . Drop . | . . . . . . . . . . Fire 1 | . . . . . . . . 1 . Melee . | . . . . . . . . . . Ram 14 | . . 1 . . . 2 . . 11 Kick . | . . . . . . . . . . Crush . | . . . . . . . . . . Escape Stasis 5 | . . . . . . . . 5 . Rewire . | . . . . . . . . . . Trap . | . . . . . . . . . . Miscellaneous . | . . . . . . . . . . Route ------- -11/Scrapyard -10/Materials -9/Materials -9/Mines -8/Materials (discovered 3 exits: *Fac x3) -7/Factory -6/Factory -6/Waste -6/Factory (discovered 5 exits: *Fac x4 / [*Low]) -5/Factory History --------- Turn | Location | Event 1 | -11/Scrapyard | Released all parts (6) 1 | -11/Scrapyard | Discovered new exit (range 1) 3 | -11/Scrapyard | Entered Materials 37 | -10/Materials | Discovered new exit (range 15) 45 | -10/Materials | Entered another Materials area 45 | -9/Materials | Evolved 2 slots: Utility x2 97 | -9/Materials | Discovered new exit (range 13) 103 | -9/Materials | Entered Mines 143 | -9/Mines | Discovered new exit (range 10) 147 | -9/Mines | Entered Materials 147 | -8/Materials | Evolved 2 slots: Utility x2 155 | -8/Materials | Identified exit to Factory 215 | -8/Materials | Entered Factory 215 | -7/Factory | Evolved 2 slots: Utility x2 227 | -7/Factory | Discovered new exit (range 15) 234 | -7/Factory | Entered another Factory area 234 | -6/Factory | Evolved 2 slots: Utility x2 288 | -6/Factory | Spotted B-75 Beast 293 | -6/Factory | Sucked down chute 293 | -6/Factory | Entered Waste 303 | -6/Waste | Spotted C-40 Crusher 303 | -6/Waste | Spotted C-40 Crusher 303 | -6/Waste | Spotted C-40 Crusher 308 | -6/Waste | EMP discharged 308 | -6/Waste | System corruption reached 10% 312 | -6/Waste | Spotted C-40 Crusher 315 | -6/Waste | Spotted C-40 Crusher 316 | -6/Waste | Spotted C-40 Crusher 319 | -6/Waste | Build established: Mutant 337 | -6/Waste | Discovered new exit (range 15) 343 | -6/Waste | Entered Factory 399 | -6/Factory | Identified exit to Factory 418 | -6/Factory | Discovered new exit (range 11) 452 | -6/Factory | Entered another Factory area 452 | -5/Factory | Evolved 2 slots: Utility x2 551 | -5/Factory | Spotted B-75 Beast 554 | -5/Factory | Core integrity fell below 50% 561 | -5/Factory | Core integrity fell below 20% 566 | -5/Factory | Destroyed by S-27 Virus with Autogun Last Messages --------------- 00545_ Slammed into G-50 Soldier. 00551_ Destabilizing: System corrupted (+2). 00552_ Slammed into G-50 Soldier. 00554_ G-50 Soldier knocked back. 00554_ Destabilizing: Core damaged (-20). 00554_ W-25 Informer sends out distress signal. 00555_ Slammed into G-50 Soldier. 00555_ Destabilizing: Core damaged (-10). 00557_ Knocked back. 00561_ System corrupted: Energy discharge (-27). 00561_ Acquired Field Propulsion Drive. 00561_ Construction Platform disabled. 00563_ Acquired Field Propulsion Drive. 00563_ U-05 Engineer builds a Wall. 00563_ Field Propulsion Drive destroyed. 00563_ Knocked back. 00564_ Connecting with Terminal... 00564_ ALERT: Suspicious activity at Terminal F001. Dispatching Investigation squad. 00564_ W-25 Informer destroyed. Map ----- +----------------------------------------------------+ | ?????????????????????????????????????????????????? | | ?????????????????????????????????????????????????? | | ?????????????????????????????????????????????????? | | ?????????????????????????????????????????????????? | | ?????????????????????????????????????????????????? | | ?????????????????????????????????????????????????? | | ???????????????????????????????????????????####### | | ??????????????????????????????? ??????????# | | ??????????????????????????????? ??????????# | | ??????????????????????????????? #?????????# " | | ??????????????????????????????? #?????????# " | | ??????????????????????????????# #?????????? | | ??????????????????????????????# #???####### | | ??????????????????########+#### #??# #? " | | ?????????????????? #??# !!! #? " | | ??????????????????? #??# !!! #?? | | ???????????????????? #??# !!! #?? | | ?????????????????????? #### #??? | | ???????????????????????# # B# ????? | | ???????????????????????# #BB###+########+## | | ???????????????????????# p u %%%%%%% | | ???????????????????????# k p ########"## | | ???????????????????????# T = sg #????? | | ???????????????????????# !%*= """" "" #?# | | ???????????????????????# = %"""" """#?#""" | | ???????????????????????# @ """ F"#?#"Y | | ???????????????????????# """" """#?#""" ] | | ???????????????????????# """" "" #?# | | ???????????????????????# """" ####?###### | | ???????????????????????# """" #?????????? | | ???????????????????????# #?????????? | | ?????????????????????? #?????????? | | ?????????????????????##### #?????????? | | ?????????????????????????# #######?????????? | | ?????????????????????????+ #???????????????? | | ?????????????????????????#########???????????????? | | ?????????????????????????????????????????????????? | | ?????????????????????????????????????????????????? | | ?????????????????????????????????????????????????? | | | | | | | | | | | | | | | | | | | | | | | +----------------------------------------------------+ Best States ------------- Heat Dissipation 40 Energy Generation 5 Energy Capacity 100 Matter Stores 300 Matter Capacity 300 Sight Range 16 Terrain Scan Density 10 Evasion (%) 62 Item Schematics ----------------- None Robot Schematics ------------------ None Fabricated ------------ Nothing Alien Tech Used ----------------- None Achievements -------------- None Challenges ------------ None Game ------ Seed FrostStasisPlating Manual? 0 Play Time 00:16:02 Cumulative 342.2 hours Start 2022.05.04 @ 13:17:27 End 2022.05.04 @ 13:52:33 Sessions 1 Manual Loads 0 Difficulty Rogue Special Mode None Game No. 113 Rogue 113 Adventurer 0 Explorer 0 Win Type - Total 7 Types 3/1/0/1/2/0/0/0/0 Lore% 66 Gallery% 78 Achievement% 69 Wizard Run 0 Options --------- ASCII 0 Keyboard 0 Movement Mouse Keybinds 0 Fullscreen 0 Font 28/SmallcapsGlow Map View 72x54 Tactical HUD 1 Map Filters NONE Filters NONE Steam 1 RUN: d903c62a-9413-459f-bfcf-e0881a60d47b